Cogmind - Beta 13 @@@ ROGUE MODE // 2024.05.18 @ 20:37:42 Player: Brognold Result: Destroyed by X-62 Marksman with Pulse Rifle Performance ------------- Evolutions (4) 2000 Regions Visited (8) 1600 Robots Destroyed (27) 135 Value Destroyed (722) 722 Prototype IDs (0) 0 Alien Tech Used (0) 0 Bonus (500) 500 TOTAL SCORE: 4957 Bonus ------- Entered DSFs 500 Cogmind --------- Core Integrity 0/850 Matter 108/300 Energy 100/100 System Corruption 0% Temperature Cool (27) Movement Core (50) Location -6/DSF Parts ------- > --- POWER (2) -------- (None) > --- PROPULSION (5) --- (None) > --- UTILITY (4) ------ Signal Interpreter > --- WEAPON (4) ------- Chainsword > --- INVENTORY (5) ---- Medium Treads Medium Treads Advanced ECM Suite Peak State ------------ > --- POWER ------------ Micro Nuclear Core > --- PROPULSION ------- Medium Treads Improved Titanium Leg VTOL Module > --- UTILITY ---------- Sensor Array Signal Interpreter Targeting Computer Insulated Plating > --- WEAPON ----------- High-powered Shotgun > --- INVENTORY -------- Medium Treads Medium Treads Medium Treads [Rating: 24] Favorites ----------- Power Light Ion Engine Engine Light Ion Engine Power Core Micro Nuclear Core Propulsion Flight Unit Treads Medium Treads Leg Aluminum Leg Wheel Wheel Flight Unit Flight Unit Utility Small Storage Unit Device Sensor Array Storage Small Storage Unit Processor Targeting Computer Protection Power Shielding Weapon Light Assault Rifle Energy Gun Particle Gun Ballistic Gun Light Assault Rifle Ballistic Cannon Light Cannon Launcher Mini Grenade Launcher Special Weapon Remote Datajack Slashing Weapon Chainsword Build | -11 -10 -10 -9 -9 -8 -7 -6 -6 ------- Run | Yrd Mat Min Mat Min Mat Fac Fac DSF Slots Evolved 8 | . . . 2 . 2 2 2 . Power 1 | . . . . . 1 . . . Propulsion 3 | . . . 2 . 1 . . . Utility 2 | . . . . . . 1 1 . Weapon 2 | . . . . . . 1 1 . Parts Attached 60 | 7 10 . 9 . 11 15 1 7 Power 8 | 2 1 . . . 3 2 . . Engine 6 | 2 1 . . . 3 . . . Core 2 | . . . . . . 2 . . Reactor . | . . . . . . . . . Propulsion 18 | 2 4 . 2 . 2 5 . 3 Treads 3 | . . . . . . . . 3 Leg 5 | . 1 . . . . 4 . . Wheel 2 | 2 . . . . . . . . Hover . | . . . . . . . . . Flight 8 | . 3 . 2 . 2 1 . . Utility 13 | 1 4 . 2 . 2 3 1 . Device 4 | . 2 . . . 1 1 . . Storage 2 | 1 . . 1 . . . . . Processor 3 | . 1 . . . 1 1 . . Hackware . | . . . . . . . . . Protection 4 | . 1 . 1 . . 1 1 . Artifact . | . . . . . . . . . Weapon 21 | 2 1 . 5 . 4 5 . 4 Energy Gun 2 | . . . . . 1 1 . . Energy Cannon . | . . . . . . . . . Ballistic Gun 12 | 2 1 . 4 . 3 1 . 1 Ballistic Cannon 1 | . . . 1 . . . . . Launcher 1 | . . . . . . 1 . . Special Weapon 2 | . . . . . . 2 . . Impact Weapon . | . . . . . . . . . Slashing Weapon 3 | . . . . . . . . 3 Piercing Weapon . | . . . . . . . . . Special Melee Weapon . | . . . . . . . . . Unidentified Prototypes . | . . . . . . . . . Parts Lost 27 | . . . . . 2 13 . 12 Power 3 | . . . . . 1 1 . 1 Propulsion 12 | . . . . . 1 6 . 5 Utility 3 | . . . . . . 1 . 2 Weapon 9 | . . . . . . 5 . 4 Highest Loss Streak 11 | . . . . . 1 4 . 11 To Critical Strikes . | . . . . . . . . . Average Slot Usage (%) 69 | . 93 100 90 100 62 46 53 45 Engine 6 | . 14 14 11 11 8 . . . Core 1 | . . . . . . 2 6 4 Leg 2 | . 3 . . . . 4 6 4 Wheel 3 | . 16 . . . . . . . Flight 14 | . 5 28 35 44 28 9 6 1 Device 1 | . 1 14 . . . . 6 4 Storage 7 | . 11 . 10 11 9 6 . . Processor 6 | . 1 14 7 . 2 7 13 11 Protection 3 | . 10 . 3 11 1 . 6 1 Ballistic Gun 14 | . 28 28 22 22 12 3 6 4 Launcher 1 | . . . . . . 3 . . Naked Turns . | . . . . . . . . . Heaviest Build 20 | 13 14 7 17 15 20 12 13 13 Greatest Support 48 | 26 26 8 16 16 16 27 20 48 Greatest Overweight (x) 3 | . 3 . 1 . 1 2 . 3 Average Overweight (x) . | . . . . . . . . . Largest Inventory Capacity 8 | 8 8 5 8 8 8 8 5 5 Average Capacity 7 | 6 7 5 7 8 8 7 5 5 Most Carried 8 | 4 8 5 8 8 8 8 . 5 Average Carried 6 | 2 7 5 6 8 8 7 . 4 Final Capacity 8 | 8 5 5 8 8 8 5 5 5 Final Carried 8 | 4 5 5 8 8 8 1 . 3 Class Distribution -------------------- 84% | Mutant 8% | Sprinter 6% | Scavenger-Mutant Dominant Class ---------------- Mutant | -10/Materials Mutant | -10/Mines Mutant | -9/Materials Sprinter | -9/Mines Mutant | -8/Materials Mutant | -7/Factory Mutant | -6/Factory Mutant | -6/DSF Resources | -11 -10 -10 -9 -9 -8 -7 -6 -6 ----------- Run | Yrd Mat Min Mat Min Mat Fac Fac DSF Matter Collected 832 | 222 200 . . 27 159 105 . 119 Remotely . | . . . . . . . . . Salvage Created 686 | . 70 . . . 185 361 . 70 Parts 53 | . 6 . . . 15 25 . 7 Haulers Intercepted . | . . . . . . . . . Recyclers Shooed 2 | . . . . . . 2 . . Parts Field Recycled . | . . . . . . . . . Retrieved Matter . | . . . . . . . . . Parts Self-Destructed . | . . . . . . . . . Prevented . | . . . . . . . . . Kills | -11 -10 -10 -9 -9 -8 -7 -6 -6 ------- Run | Yrd Mat Min Mat Min Mat Fac Fac DSF Combat Hostiles Destroyed 21 | . 4 . . . 7 8 . 2 Melee 1 | . . . . . . . . 1 Guns 14 | . 4 . . . 7 2 . 1 AOE 6 | . . . . . . 6 . . Classes Destroyed 9 | . 2 . . . 2 4 . 1 Worker 1 | . . . . . . 1 . . Builder 1 | . . . . . . 1 . . Recycler 2 | . . . . . . 2 . . Watcher 2 | . . . . . . 2 . . Swarmer 11 | . 3 . . . 4 3 . 1 Grunt 6 | . 1 . . . . 5 . . Sentry 2 | . . . . . 2 . . . Specialist 1 | . . . . . . . . 1 Hunter 1 | . . . . . 1 . . . Best Kill Streak 6 | . 3 . . . 5 6 . 1 Combat Bots Only 5 | . 3 . . . 5 3 . 1 Max Kills in Single Turn 4 | . 1 . . . 1 4 . 1 Gunslinging . | . . . . . . . . . Exploded 2 | . . . . . . 2 . . Melee 1 | . . . . . . . . 1 Uniques/NPCs Destroyed . | . . . . . . . . . Combat | -11 -10 -10 -9 -9 -8 -7 -6 -6 -------- Run | Yrd Mat Min Mat Min Mat Fac Fac DSF Hostile Shots Fired 324 | . 25 . 39 . 31 107 . 122 Missed 100 | . 7 . 13 . 12 43 . 25 Damage Taken 3941 | . 148 . 217 . 214 1241 . 2121 Core 1386 | . 13 . 36 . 53 425 . 859 Absorbed by Shields . | . . . . . . . . . Redirected to Shielding 4 | . 4 . . . . . . . Regen/Repaired (Parts) 35 | . . . . . 35 . . . Core Remaining (%) 82 | 100 . 94 . 91 90 39 . . Volleys Fired 68 | . 13 . 7 . 16 28 . 4 Largest 2 | . 2 . 2 . 2 2 . 1 Hottest 85 | . 40 . 45 . 45 85 . 23 Shots Fired 98 | . 26 . 14 . 18 36 . 4 Gun 82 | . 26 . 14 . 18 20 . 4 Cannon . | . . . . . . . . . Launcher 16 | . . . . . . 16 . . Special . | . . . . . . . . . Kinetic 76 | . 26 . 14 . 18 14 . 4 Thermal 6 | . . . . . . 6 . . Explosive 16 | . . . . . . 16 . . Electromagnetic . | . . . . . . . . . Robot Hit Streak 10 | . 7 . 1 . 4 10 . 2 Robot Miss Streak 6 | . 3 . 6 . 3 2 . 1 Penetration Max . | . . . . . . . . . Secondary Targets . | . . . . . . . . . Shots Hit Robots 57 | . 14 . 4 . 13 16 . 10 Core Hits 61 | . 6 . 2 . 12 37 . 4 Critical Kills 2 | . . . . . 1 1 . . Critical Parts Destroyed . | . . . . . . . . . Critical Strikes 2 | . . . . . 1 1 . . Destroy 2 | . . . . . 1 1 . . Melee Attacks 14 | . . . . . . . . 14 Impact . | . . . . . . . . . Slashing 14 | . . . . . . . . 14 Piercing . | . . . . . . . . . Sneak Attacks . | . . . . . . . . . Combat Hostiles . | . . . . . . . . . Follow-up Attacks 1 | . . . . . . . . 1 Damage Inflicted 1892 | . 149 . 68 . 259 1186 . 230 Guns 782 | . 149 . 68 . 259 247 . 59 Cannons . | . . . . . . . . . Explosions 939 | . . . . . . 939 . . Melee 171 | . . . . . . . . 171 Ramming . | . . . . . . . . . Kinetic 738 | . 149 . 68 . 259 203 . 59 Thermal 44 | . . . . . . 44 . . Explosive 939 | . . . . . . 939 . . Electromagnetic . | . . . . . . . . . Impact . | . . . . . . . . . Slashing 171 | . . . . . . . . 171 Piercing . | . . . . . . . . . Highest Corruption 1 | . . . . . . 1 . . Average Corruption 1 | . . . . . . 1 . . Corruption Purged . | . . . . . . . . . Corruption Blocked . | . . . . . . . . . Overload Shots . | . . . . . . . . . Overflow Damage 22 | . . . . . . 22 . . Projectiles . | . . . . . . . . . Explosions 22 | . . . . . . 22 . . Melee . | . . . . . . . . . Knockbacks . | . . . . . . . . . Impact . | . . . . . . . . . Kinetic . | . . . . . . . . . Secondary . | . . . . . . . . . Self-Inflicted Damage 117 | . . . . . . 117 . . Shots 3 | . . . . . . 3 . . Rammed . | . . . . . . . . . Targets Rammed . | . . . . . . . . . Kicked . | . . . . . . . . . Crushed . | . . . . . . . . . Highest Temperature 102 | . 6 . 51 7 17 102 . . Average Temperature 20 | . 6 . 21 2 7 35 . . Received Heat Transfer 615 | . 12 . 15 . 45 300 . 243 Siege Activations . | . . . . . . . . . Robots Corrupted . | . . . . . . . . . Combat Hostiles . | . . . . . . . . . Parts Fried . | . . . . . . . . . Impact Corruptions . | . . . . . . . . . Robots Melted . | . . . . . . . . . Combat Hostiles . | . . . . . . . . . Parts Melted . | . . . . . . . . . Heat Transferred 111 | . . . . . . 111 . . Parts Sabotaged . | . . . . . . . . . Parts Stolen . | . . . . . . . . . Parts Stripped . | . . . . . . . . . Power Chain Reactions . | . . . . . . . . . Alert | -11 -10 -10 -9 -9 -8 -7 -6 -6 ------- Run | Yrd Mat Min Mat Min Mat Fac Fac DSF Peak Influence 359 | . 164 63 114 44 279 359 63 49 Initial 65 | . . 63 24 44 16 65 58 44 Average 98 | . 55 63 58 44 114 206 58 37 Maximum Alert Level 1 | . . . . . 1 1 . . Low Security (%) 85 | 100 100 100 100 100 88 49 100 100 Level 1 14 | . . . . . 11 50 . . Level 2 . | . . . . . . . . . Level 3 . | . . . . . . . . . Level 4 . | . . . . . . . . . Level 5 . | . . . . . . . . . High Security . | . . . . . . . . . Max Security . | . . . . . . . . . Squads Dispatched 7 | . 1 . 1 . . 3 . 2 Investigation . | . . . . . . . . . Extermination . | . . . . . . . . . Reinforcement 7 | . 1 . 1 . . 3 . 2 Assault . | . . . . . . . . . Garrison . | . . . . . . . . . Intercept . | . . . . . . . . . Searches Triggered . | . . . . . . . . . Construction Impeded 1 | . . . . . . 1 . . Haulers Reinforced 1 | . . . . . . 1 . . Active Scanning Responses . | . . . . . . . . . Cargo Convoy Interrupts . | . . . . . . . . . Stealth | -11 -10 -10 -9 -9 -8 -7 -6 -6 --------- Run | Yrd Mat Min Mat Min Mat Fac Fac DSF Distress Signals 2 | . 1 . . . . 1 . . Communications Jammed . | . . . . . . . . . Distress Signals . | . . . . . . . . . Times Spotted 56 | . 9 . 9 . 12 16 . 10 Peak Tracking Total 8 | . 4 . 8 . 8 5 . 6 Tactical Retreats 6 | . 1 . . . 2 2 . 1 Traps | -11 -10 -10 -9 -9 -8 -7 -6 -6 ------- Run | Yrd Mat Min Mat Min Mat Fac Fac DSF Traps Triggered 1 | . . . . . . 1 . . Indirectly . | . . . . . . . . . Trap Hack Attempts . | . . . . . . . . . Triggered . | . . . . . . . . . Disarmed . | . . . . . . . . . Reprogrammed . | . . . . . . . . . Reused . | . . . . . . . . . Traps Extracted . | . . . . . . . . . Installed . | . . . . . . . . . Triggered . | . . . . . . . . . Machines | -11 -10 -10 -9 -9 -8 -7 -6 -6 ---------- Run | Yrd Mat Min Mat Min Mat Fac Fac DSF Machines Disabled . | . . . . . . . . . Max in Single Turn . | . . . . . . . . . Machines Repaired . | . . . . . . . . . Machines Dismantled . | . . . . . . . . . Machines Sabotaged . | . . . . . . . . . Overloaded Fab Kills . | . . . . . . . . . Hacking | -11 -10 -10 -9 -9 -8 -7 -6 -6 --------- Run | Yrd Mat Min Mat Min Mat Fac Fac DSF Machines Accessed 9 | . 3 . 1 . 3 1 1 . Terminals 7 | . 3 . . . 2 1 1 . Fabricators . | . . . . . . . . . Repair Stations 2 | . . . 1 . 1 . . . Recycling Units . | . . . . . . . . . Scanalyzers . | . . . . . . . . . Garrison Access . | . . . . . . . . . Total Hacks 23 | . 7 . 2 . 11 2 1 . Successful 12 | . 2 . 1 . 8 . 1 . Failed 11 | . 5 . 1 . 3 2 . . Catastrophic 2 | . 2 . . . . . . . Database Lockouts . | . . . . . . . . . Manual 4 | . 1 . . . 3 . . . Terminals 17 | . 7 . . . 7 2 1 . Fabricators . | . . . . . . . . . Repair Stations 6 | . . . 2 . 4 . . . Recycling Units . | . . . . . . . . . Scanalyzers . | . . . . . . . . . Garrison Access . | . . . . . . . . . Terminal Hacks 7 | . 2 . . . 4 . 1 . Open DSF 1 | . . . . . . . 1 . Emergency Access Points 2 | . 1 . . . 1 . . . Alert Level 1 | . . . . . 1 . . . Unreport Threat 1 | . . . . . 1 . . . Locate Traps 1 | . 1 . . . . . . . Hauler Manifests 1 | . . . . . 1 . . . Fabricator Hacks . | . . . . . . . . . Repair Station Hacks 5 | . . . 1 . 4 . . . Scan Component 3 | . . . 1 . 2 . . . Repair 2 | . . . . . 2 . . . Recycling Unit Hacks . | . . . . . . . . . Scanalyzer . | . . . . . . . . . Garrison Access Hacks . | . . . . . . . . . Unauthorized Hacks . | . . . . . . . . . Terminals . | . . . . . . . . . Fabricators . | . . . . . . . . . Repair Stations . | . . . . . . . . . Recycling Units . | . . . . . . . . . Scanalyzers . | . . . . . . . . . Garrison Access . | . . . . . . . . . Data Cores Recovered . | . . . . . . . . . Used . | . . . . . . . . . Hacking Detections 6 | . 2 . 1 . 2 1 . . Full Trace Events . | . . . . . . . . . Feedback Events . | . . . . . . . . . Feedback Blocked . | . . . . . . . . . Robot Schematics Acquired . | . . . . . . . . . Robots Built . | . . . . . . . . . Authchips . | . . . . . . . . . Time . | . . . . . . . . . Total Robot Build Rating . | . . . . . . . . . Part Schematics Acquired . | . . . . . . . . . Parts Built . | . . . . . . . . . Authchips . | . . . . . . . . . Time . | . . . . . . . . . Total Part Build Rating . | . . . . . . . . . Parts Repaired 2 | . . . . . 2 . . . Time 52 | . . . . . 52 . . . Parts Recycled . | . . . . . . . . . Recycled Matter . | . . . . . . . . . Retrieved Matter . | . . . . . . . . . Retrieved Components . | . . . . . . . . . Parts Scanalyzed . | . . . . . . . . . Part Schematics Acquired . | . . . . . . . . . Parts Damaged . | . . . . . . . . . Bothacking | -11 -10 -10 -9 -9 -8 -7 -6 -6 ------------ Run | Yrd Mat Min Mat Min Mat Fac Fac DSF Used RIF Installer . | . . . . . . . . . Robots Hacked . | . . . . . . . . . Non-combat . | . . . . . . . . . Combat . | . . . . . . . . . Robot Hacks Applied . | . . . . . . . . . Relay Couplers Released . | . . . . . . . . . Fabnet Peak Effective % . | . . . . . . . . . Robots Rewired . | . . . . . . . . . Allies Hacked . | . . . . . . . . . Hacks Repelled . | . . . . . . . . . Allies | -11 -10 -10 -9 -9 -8 -7 -6 -6 -------- Run | Yrd Mat Min Mat Min Mat Fac Fac DSF Total Allies . | . . . . . . . . . Largest Group . | . . . . . . . . . Highest-Rated Group . | . . . . . . . . . Highest-Rated Ally . | . . . . . . . . . Total Orders . | . . . . . . . . . Ally Attacks . | . . . . . . . . . Total Damage . | . . . . . . . . . Kills . | . . . . . . . . . Allies Corrupted . | . . . . . . . . . Allies Melted . | . . . . . . . . . Intel | -11 -10 -10 -9 -9 -8 -7 -6 -6 ------- Run | Yrd Mat Min Mat Min Mat Fac Fac DSF Robot Analysis Total . | . . . . . . . . . Derelict Logs Recovered 1 | . . 1 . . . . . . Drone Launches . | . . . . . . . . . Drone Recoveries . | . . . . . . . . . Exploration | -11 -10 -10 -9 -9 -8 -7 -6 -6 ------------- Run | Yrd Mat Min Mat Min Mat Fac Fac DSF Turns Passed 1566 | 48 355 69 204 39 182 410 12 247 Spaces Moved 1348 | 40 215 186 276 119 146 276 9 81 Core 55 | 2 . . . . . 46 . 7 Treads 69 | . . . . . . . . 69 Legs 158 | . 23 . . . . 121 9 5 Wheels 105 | 38 67 . . . . . . . Hover . | . . . . . . . . . Flight 961 | . 125 186 276 119 146 109 . . Fastest Speed 31 | 50 37 37 31 31 31 34 130 50 Average Speed 67 | 86 72 37 37 31 37 117 130 153 Slowest Speed 290 | 90 290 37 114 31 117 195 130 200 Overloaded Moves . | . . . . . . . . . Propulsion Burnouts . | . . . . . . . . . Robots Hopped 8 | . 1 2 4 1 . . . . Cave-ins Triggered . | . . . . . . . . . Exploration Rate (%) 25 | 3 35 30 28 29 17 13 . 49 Regions Visited 8 Branch Regions 2 Pre-discovered Areas . | . . . . . . . . . Known Exits Taken 4 | . 1 1 . . . 1 1 . Unknown Exits Taken 4 | 1 . . 1 1 1 . . . Scrap Searched 2 | . . 1 . 1 . . . . Spaces Dug . | . . . . . . . . . Terrain Destroyed 78 | . . . . . . 78 . . Melee . | . . . . . . . . . Projectile . | . . . . . . . . . AOE 78 | . . . . . . 78 . . Terrain Rammed . | . . . . . . . . . Walls Destroyed . | . . . . . . . . . Machines Disabled . | . . . . . . . . . Actions | -11 -10 -10 -9 -9 -8 -7 -6 -6 --------- Run | Yrd Mat Min Mat Min Mat Fac Fac DSF Total 1867 | 49 391 183 358 119 253 325 9 180 Wait 338 | . 134 . 64 . 73 4 . 63 Move 1324 | 39 212 181 267 116 145 275 8 81 Hop 8 | . 1 2 4 1 . . . . Pick Up 21 | 3 7 . 2 1 . . . 8 Fast Attach 42 | 6 7 . 5 . 10 9 . 5 Attach 11 | . 1 . 1 . . 6 1 2 Detach 5 | . 1 . 2 . . 2 . . Swap 7 | 1 2 . 3 . 1 . . . Drop 30 | . 13 . 3 1 8 1 . 4 Fire 68 | . 13 . 7 . 16 28 . 4 Melee 13 | . . . . . . . . 13 Ram . | . . . . . . . . . Kick . | . . . . . . . . . Crush . | . . . . . . . . . Escape Stasis . | . . . . . . . . . Rewire . | . . . . . . . . . Trap . | . . . . . . . . . Miscellaneous . | . . . . . . . . . Route ------- -11/Scrapyard -10/Materials (discovered 2 exits: *Mat / *Min) -10/Mines -9/Materials -9/Mines -8/Materials -7/Factory -6/Factory -6/DSF History --------- Turn | Location | Event 31 | -11/Scrapyard | Discovered new exit (range 15) 49 | -11/Scrapyard | Entered Materials 316 | -10/Materials | Build established: Mutant 366 | -10/Materials | Discovered new exit (range 16) 398 | -10/Materials | Discovered new exit (range 6) 399 | -10/Materials | Identified exit to Mines 404 | -10/Materials | Entered Mines 406 | -10/Mines | Discovered new exit (range 10) 408 | -10/Mines | Identified exit to Materials 414 | -10/Mines | Met a Derelict bent on vengeance 433 | -10/Mines | Learned Materials stockpile data 473 | -10/Mines | Entered Materials 473 | -9/Materials | Evolved 2 slots: Propulsion x2 672 | -9/Materials | Discovered new exit (range 15) 677 | -9/Materials | Entered Mines 693 | -9/Mines | Discovered new exit (range 7) 716 | -9/Mines | Entered Materials 716 | -8/Materials | Evolved 2 slots: Power x1, Propulsion x1 785 | -8/Materials | Repaired Flight Unit 813 | -8/Materials | Repaired Flight Unit? 876 | -8/Materials | Discovered new exit (range 5) 898 | -8/Materials | Entered Factory 898 | -7/Factory | Evolved 2 slots: Utility x1, Weapon x1 974 | -7/Factory | Lost 4 parts (1p2n1w) 1066 | -7/Factory | Lost 4 parts (2n2w) 1155 | -7/Factory | Core integrity fell below 50% 1200 | -7/Factory | Discovered new exit (range 15) 1296 | -7/Factory | Lost 3 parts (1n1u1w) 1304 | -7/Factory | Identified exit to Factory 1308 | -7/Factory | Entered another Factory area 1308 | -6/Factory | Evolved 2 slots: Utility x1, Weapon x1 1319 | -6/Factory | Identified exit to DSF 1320 | -6/Factory | Entered DSF 1387 | -6/DSF | Additional patrols routed to DSF 1537 | -6/DSF | Core integrity fell below 50% 1564 | -6/DSF | Core integrity fell below 20% 1567 | -6/DSF | Destroyed by X-62 Marksman with Pulse Rifle Last Messages --------------- S-27 Virus destroyed. Penetrated by Slug. Chainsword destroyed. Autogun destroyed. Acquired 59 matter. Penetrated by Slug. Med. Treads destroyed. Acquired Chainsword. X-62 Marksman suffers critical hit (Destroy). Acquired Chainsword. Chainsword follow-up attack on H-61 Shepherd. Penetrated by Slug. Arm. Treads destroyed. Penetrated by Slug. Chainsword destroyed. Knocked back. Penetrated by Slug. Knocked back. Penetrated by Slug. Critical hit (Burn: +37). Map ----- +----------------------------------------------------+ | ????????????????????????????????? | | ????????????????????????????????? | | ????????????????????????????????? | | ????????????????????????????????? | | ????????????????????????????????? | | ????????????????????????????????? | | ????????????????????????????????? | | ????????????????????????????????? | | ????????????????????????????????? | | ????????? ?????????????????????? | | ????????? ?????????????????????? | | ????????# #????????????????????? | | ????????# #????????????????????? | | ????????] [????????????????????? | | ????????] [????????????????????? | | ???????## ###??????????????????? | | ???????#[ //???????????????????? | | ????????[ //???????????????????? | | ????????[ /????????????????????? | | ??????### #?####?###???????????? | | ??????# #? #!!!#???????????? | | ??????# ## ;!!!## ??????? | | ??????#!! ^ g ??????? | | ??????#!! ^ % gg ?????? | | ??????#!H % ??????? | | ?????## @ x;; #!!!#? ??????? | | ?????#; =!=## #?????# #?????? | | ?????##;;s[;##?##????## ##????? | | ??????## !!* #???????!! ]]????? | | ???????# %#????????! ]?????? | | ???????# #????????! ]?????? | | ???????## ###??????### ###???? | | ???????# #??????# ==#???? | | ???????# #??????# ==#???? | | ???????## ########## ==##### | | ??????### ###!!# #?# #?#===# | | ??????#"" ##!!# ### ###== # | | ????""""" | | ????"##"" % %% | | ??????#"""%"##!!#!!!#!! !!#===# | | ??????#"""""#########!!% !!##### | | ??????####"##???????#########???? | | ?????????#"#????????????????????? | | ?????????""?????????????????????? | | ????????????????????????????????? | | ????????????????????????????????? | | ????????????????????????????????? | | ????????????????????????????????? | | ????????????????????????????????? | | | +----------------------------------------------------+ Best States ------------- Heat Dissipation 37 Energy Generation 17 Energy Capacity 290 Matter Stores 300 Matter Capacity 300 Sight Range 16 Robot Scan Range 14 Terrain Scan Density 10 Armor Coverage 150 Resistance: EM 15 Power Shielding 33 Evasion (%) 63 Targeting Accuracy 5 Recoil Reduction 2 Item Schematics ----------------- None Robot Schematics ------------------ None Fabricated ------------ Nothing Alien Tech Used ----------------- None Achievements -------------- None Challenges ------------ None Game ------ Seed ReflectiveMicrowarpLaser Manual? 0 Play Time 00:37:20 Cumulative 17.7 hours Start 2024.05.18 @ 19:52:26 End 2024.05.18 @ 20:37:42 Sessions 1 Manual Loads 0 Difficulty Rogue Special Mode None Game No. 21 Rogue 21 Adventurer 0 Explorer 0 Win Type - Total 0 Types 0/0/0/0/0/0/0/0/0 Lore% 16 Gallery% 23 Achievement% 19 Wizard Run 0 Options --------- Layout 0 ASCII 0 Keyboard 1 Movement Arrows Keybinds 0 Fullscreen 2 Font 24/Terminus Map View 76x50 Zoom Use 0% Tactical HUD 0 Map Filters NONE Filters NONE Steam 0 RUN: 8f40462d-9b47-4242-873c-7037277b6b3b